[Event "Redbull chessmasters 2019"]
[Site "Istambul"]
[Date "2019.11.24"]
[Round "6.15"]
[White "Tofan, Ismail"]
[Black "Sabahi, Cem"]
[Result "0-1"]
[ECO "A10"]
[WhiteElo "1685"]
[BlackElo "1604"]
[Annotator "NA"]
[PlyCount "148"]
[EventDate "2019.11.23"]
[EventType "k.o."]
[EventCountry "TUR"]
[SourceTitle "playchess.com"]
[Source "ChessBase"]
[SourceQuality "1"]
[TimeControl "600+5"]

1. Nf3 g6 2. c4 Bg7 3. Nc3 d6 4. b3 e5 5. Bb2 Nc6 6. e3 Nf6 7. d4 Qe7 8. dxe5 Nxe5 9. Nxe5 dxe5 10. Nb5 O-O 11. Ba3 c5 12. Qd6 Qxd6 13. Nxd6 b6 14. Be2 e4 15. Bb2 Rd8 16. Rd1 Bf5 17. h3 Ne8 18. Bxg7 Kxg7 {[%emt 0:07:13]} 19. Nb5 {[%emt 0:07:15]} Rxd1+ {[%emt 0:00:05]} 20. Kxd1 {[%emt 0:00:05]} a6 {[%emt 0:00:05]} 21. Nc3 {[%emt 0:00:05]} Rd8+ {[%emt 0:00:05]} 22. Kc2 {[%emt 0:00:05]} Nf6 {[%emt 0:00:05]} 23. g4 {[%emt 0:00:05]} Bc8 {[%emt 0:00:05]} 24. Rd1 {[%emt 0:00:44]} Rxd1 {[%emt 0:00:05]} 25. Kxd1 {[%emt 0:00:05]} Bb7 {[%emt 0:00:00]} 26. Bf1 {[%emt 0:00:10]} Nd7 {[%emt 0:00:03]} 27. g5 {[%emt 0:00:31]} f5 {[%emt 0:00:21]} 28. gxf6+ {[%emt 0:00:13]} Kxf6 {[%emt 0:00:01]} 29. Bg2 {[%emt 0:00:01]} Ke5 {[%emt 0:00:05]} 30. h4 {[%emt 0:00:01]} Nf6 {[%emt 0:00:23]} 31. Na4 {[%emt 0:00:14]} Kd6 {[%emt 0:00:05]} 32. Nxb6 {[%emt 0:00:00]} Bc6 {[%emt 0:00:29]} 33. Nc8+ {[%emt 0:00:27]} Kc7 {[%emt 0:00:34]} 34. Ne7 {[%emt 0:00:59]} Bb7 {[%emt 0:00:02]} 35. Bh3 {[%emt 0:00:07]} Kd6 {[%emt 0:00:16]} 36. Nc8+ {[%emt 0:00:06]} Kc7 {[%emt 0:00:12]} 37. Ne7 {[%emt 0:00:21]} Kd6 {[%emt 0:00:05]} 38. Bc8 {[%emt 0:00:13]} Bxc8 {[%emt 0:00:50]} 39. Nxc8+ {[%emt 0:00:05]} Kc7 {[%emt 0:00:00]} 40. Ne7 {[%emt 0:00:23]} Kd7 {[%emt 0:00:00]} 41. Nd5 {[%emt 0:00:25]} Nxd5 {[%emt 0:00:05]} 42. cxd5 {[%emt 0:00:05]} Kd6 {[%emt 0:00:05]} 43. Kd2 {[%emt 0:00:05]} Kxd5 {[%emt 0:00:05]} 44. Kc3 {[%emt 0:00:05]} a5 {[%emt 0:00:05]} 45. a3 {[%emt 0:00:05]} h6 {[%emt 0:00:05]} 46. b4 {[%emt 0:00:05]} cxb4+ {[%emt 0:00:05]} 47. axb4 {[%emt 0:00:05]} a4 {[%emt 0:01:00]} 48. b5 {[%emt 0:00:13]} Kc5 {[%emt 0:00:05]} 49. b6 {[%emt 0:00:05]} Kxb6 {[%emt 0:00:05]} 50. Kb4 {[%emt 0:00:05]} Kc6 {[%emt 0:00:05]} 51. Kxa4 {[%emt 0:00:00]} Kc5 {[%emt 0:00:05]} 52. Kb3 {[%emt 0:00:00]} Kb5 {[%emt 0:00:25]} 53. Kc3 {[%emt 0:00:01]} Kc5 {[%emt 0:00:00]} 54. Kb3 {[%emt 0:00:24]} Kd5 {[%emt 0:00:13]} 55. Kb4 {[%emt 0:00:05]} h5 {[%emt 0:00:29]} 56. Kc3 {[%emt 0:00:05]} Kc5 {[%emt 0:00:05]} 57. Kb3 {[%emt 0:00:05]} Kb5 {[%emt 0:00:05]} 58. Kc3 {[%emt 0:00:05]} Kc5 {[%emt 0:00:05]} 59. Kb3 {[%emt 0:00:05]} Kd5 {[%emt 0:00:05]} 60. Kc3 {[%emt 0:00:01]} Ke5 {[%emt 0:00:07]} 61. Kc4 {[%emt 0:00:33]} g5 {[%emt 0:00:05]} 62. hxg5 {[%emt 0:00:06]} h4 {[%emt 0:00:05]} 63. g6 {[%emt 0:00:00]} Kf6 {[%emt 0:00:00]} 64. Kd4 {[%emt 0:00:01]} h3 {[%emt 0:00:04]} 65. Kxe4 {[%emt 0:00:05]} h2 {[%emt 0:00:05]} 66. g7 {[%emt 0:00:00]} Kxg7 {[%emt 0:00:00]} 67. f4 {[%emt 0:00:01]} h1=Q+ {[%emt 0:00:00]} 68. Ke5 {[%emt 0:00:05]} Qc6 {[%emt 0:00:00]} 69. e4 {[%emt 0:00:05]} Kf7 {[%emt 0:00:04]} 70. f5 {[%emt 0:00:00]} Qc7+ {[%emt 0:00:11]} 71. Kd5 {[%emt 0:00:03]} Kf6 {[%emt 0:00:05]} 72. Kd4 {[%emt 0:00:01]} Qd6+ {[%emt 0:00:01]} 73. Ke3 {[%emt 0:00:05]} Ke5 {[%emt 0:00:00]} 74. Kf3 {[%emt 0:00:00]} Qd3+ {[%emt 0:00:00]} 0-1

[Event "Redbull chessmasters 2019"]
[Site "Istambul"]
[Date "2019.11.24"]
[Round "6.16"]
[White "Sahin, Handenur"]
[Black "Ozdemir, Cemre"]
[Result "1-0"]
[ECO "C78"]
[WhiteElo "2014"]
[BlackElo "1326"]
[Annotator "NA"]
[PlyCount "67"]
[EventDate "2019.11.23"]
[EventType "k.o."]
[EventCountry "TUR"]
[SourceTitle "playchess.com"]
[Source "ChessBase"]
[SourceQuality "1"]
[TimeControl "600+5"]

1. e4 e5 2. Nf3 Nc6 3. Bb5 a6 4. Ba4 Nf6 5. d3 b5 6. Bb3 Bc5 7. O-O d6 8. c3 Bg4 9. Be3 Bb6 10. Nbd2 O-O 11. h3 Be6 12. a4 b4 13. cxb4 Nxb4 14. Bxe6 fxe6 15. Qb3 Bxe3 16. fxe3 Rb8 17. Qxe6+ Kh8 18. Qc4 d5 19. exd5 Nfxd5 20. Nxe5 Nxe3 {[%emt 0:07:15]} 21. Rxf8+ {[%emt 0:07:52]} Qxf8 {[%emt 0:00:05]} 22. Qe4 {[%emt 0:00:07]} Nbc2 {[%emt 0:01:56]} 23. Nd7 {[%emt 0:00:18]} Re8 {[%emt 0:01:43]} 24. Nxf8 {[%emt 0:00:28]} Rxe4 {[%emt 0:00:04]} 25. Nxe4 {[%emt 0:00:19]} Nxa1 {[%emt 0:00:02]} 26. Ne6 {[%emt 0:00:07]} Nd5 {[%emt 0:00:10]} 27. N4c5 {[%emt 0:00:09]} a5 {[%emt 0:00:15]} 28. Nd4 {[%emt 0:00:06]} Kg8 {[%emt 0:00:33]} 29. Nc6 {[%emt 0:00:34]} Kf7 {[%emt 0:00:03]} 30. Nxa5 {[%emt 0:00:06]} Ke7 {[%emt 0:00:03]} 31. Nc4 {[%emt 0:00:02]} Nb6 {[%emt 0:00:11]} 32. a5 {[%emt 0:00:14]} Nxc4 {[%emt 0:00:05]} 33. dxc4 {[%emt 0:00:05]} Kd6 {[%emt 0:00:02]} 34. a6 {[%emt 0:00:29]} 1-0

[Event "Redbull chessmasters 2019"]
[Site "Istambul"]
[Date "2019.11.24"]
[Round "7.1"]
[White "Kilic, Efe Mert"]
[Black "Aliakbarov, Anar"]
[Result "1/2-1/2"]
[ECO "C54"]
[WhiteElo "2247"]
[BlackElo "2219"]
[Annotator "NA"]
[PlyCount "27"]
[EventDate "2019.11.23"]
[EventType "k.o."]
[EventCountry "TUR"]
[SourceTitle "playchess.com"]
[Source "ChessBase"]
[SourceQuality "1"]
[TimeControl "600+5"]

1. e4 {[%emt 0:00:00]} e5 {[%emt 0:00:00]} 2. Nf3 {[%emt 0:00:08]} Nc6 {[%emt 0:00:00]} 3. Bc4 {[%emt 0:00:02]} Bc5 {[%emt 0:00:02]} 4. c3 {[%emt 0:00:05]} Nf6 {[%emt 0:00:05]} 5. d4 {[%emt 0:00:03]} exd4 {[%emt 0:00:00]} 6. cxd4 {[%emt 0:00:05]} Bb4+ {[%emt 0:00:04]} 7. Bd2 {[%emt 0:00:05]} Bxd2+ {[%emt 0:00:05]} 8. Nbxd2 {[%emt 0:00:05]} d5 {[%emt 0:00:05]} 9. exd5 {[%emt 0:00:05]} Nxd5 {[%emt 0:00:05]} 10. O-O {[%emt 0:00:05]} O-O {[%emt 0:00:00]} 11. Rc1 {[%emt 0:00:00]} Nb6 {[%emt 0:00:23]} 12. Bb3 {[%emt 0:00:08]} Nb4 {[%emt 0:01:16]} 13. Ne5 {[%emt 0:01:27]} N4d5 {[%emt 0:00:37]} 14. Ne4 {[%emt 0:00:29]} 1/2-1/2

[Event "Redbull chessmasters 2019"]
[Site "Istambul"]
[Date "2019.11.24"]
[Round "7.3"]
[White "Gunduz, Umut Erdem"]
[Black "Kesgin, Halit Kaan"]
[Result "1-0"]
[ECO "C01"]
[WhiteElo "2172"]
[BlackElo "2061"]
[Annotator "NA"]
[PlyCount "135"]
[EventDate "2019.11.23"]
[EventType "k.o."]
[EventCountry "TUR"]
[SourceTitle "playchess.com"]
[Source "ChessBase"]
[SourceQuality "1"]
[TimeControl "600+5"]

1. e4 {[%emt 0:00:00]} e6 {[%emt 0:00:00]} 2. d4 {[%emt 0:00:05]} d5 {[%emt 0:00:05]} 3. Nc3 {[%emt 0:00:00]} Bb4 {[%emt 0:00:00]} 4. exd5 {[%emt 0:00:00]} exd5 {[%emt 0:00:01]} 5. Bd3 {[%emt 0:00:00]} Nf6 {[%emt 0:00:07]} 6. Qf3 {[%emt 0:00:10]} Nc6 {[%emt 0:00:21]} 7. Nge2 {[%emt 0:00:20]} Be6 {[%emt 0:01:08]} 8. Be3 {[%emt 0:00:26]} Qd7 {[%emt 0:00:17]} 9. h3 {[%emt 0:00:04]} h6 {[%emt 0:00:38]} 10. O-O-O {[%emt 0:00:07]} O-O-O {[%emt 0:00:08]} 11. a3 {[%emt 0:00:08]} Ba5 {[%emt 0:00:34]} 12. g4 {[%emt 0:00:05]} Ne8 {[%emt 0:00:37]} 13. Qg2 {[%emt 0:01:19]} Kb8 {[%emt 0:00:34]} 14. Kb1 {[%emt 0:00:08]} Rf8 {[%emt 0:00:14]} 15. Na4 {[%emt 0:01:00]} Bb6 {[%emt 0:01:20]} 16. Nc5 {[%emt 0:00:45]} Bxc5 {[%emt 0:01:36]} 17. dxc5 {[%emt 0:00:01]} f5 {[%emt 0:00:10]} 18. Nf4 {[%emt 0:00:51]} fxg4 {[%emt 0:00:12]} 19. Nxe6 {[%emt 0:00:06]} Qxe6 {[%emt 0:00:04]} 20. hxg4 {[%emt 0:00:03]} d4 {[%emt 0:00:13]} 21. Bd2 {[%emt 0:00:55]} Nf6 {[%emt 0:00:19]} 22. g5 {[%emt 0:00:01]} hxg5 {[%emt 0:00:24]} 23. Rde1 {[%emt 0:02:41]} Qg4 {[%emt 0:00:27]} 24. Qh2 {[%emt 0:00:14]} Qf3 {[%emt 0:00:56]} 25. Bxg5 {[%emt 0:00:58]} Qd5 {[%emt 0:00:04]} 26. Bf4 {[%emt 0:00:03]} Rc8 {[%emt 0:00:29]} 27. b4 {[%emt 0:00:14]} g5 {[%emt 0:00:58]} 28. Bc1 {[%emt 0:01:20]} Ng4 {[%emt 0:00:05]} 29. Qg3 {[%emt 0:00:01]} Nxf2 {[%emt 0:00:07]} 30. Rh5 {[%emt 0:00:05]} Nxd3 {[%emt 0:00:14]} 31. Qxd3 {[%emt 0:00:01]} Rf3 {[%emt 0:00:00]} 32. Rxg5 {[%emt 0:00:09]} Qxg5 {[%emt 0:00:08]} 33. Qxf3 {[%emt 0:00:16]} Qg6 {[%emt 0:00:07]} 34. b5 {[%emt 0:00:03]} Na5 {[%emt 0:00:09]} 35. Qd5 {[%emt 0:00:05]} Qg3 {[%emt 0:00:05]} 36. Bd2 {[%emt 0:00:05]} c6 {[%emt 0:00:00]} 37. Qf7 {[%emt 0:00:05]} Ka8 {[%emt 0:00:08]} 38. Bxa5 {[%emt 0:00:03]} cxb5 {[%emt 0:00:02]} 39. Qe8 {[%emt 0:00:13]} Qg4 {[%emt 0:00:05]} 40. Qe4 {[%emt 0:00:05]} Qg3 {[%emt 0:00:01]} 41. Qxd4 {[%emt 0:00:03]} Qxa3 {[%emt 0:00:05]} 42. Bb4 {[%emt 0:00:04]} Qf3 {[%emt 0:00:05]} 43. Kb2 {[%emt 0:00:02]} a6 {[%emt 0:00:11]} 44. Re3 {[%emt 0:00:05]} Qc6 {[%emt 0:00:05]} 45. Qd6 {[%emt 0:00:05]} Ka7 {[%emt 0:00:00]} 46. Re7 {[%emt 0:00:01]} a5 {[%emt 0:00:07]} 47. Bxa5 {[%emt 0:00:11]} Qxc5 {[%emt 0:00:04]} 48. Qxc5+ {[%emt 0:00:08]} Rxc5 {[%emt 0:00:00]} 49. Bb4 {[%emt 0:00:05]} Rf5 {[%emt 0:00:05]} 50. Kb3 {[%emt 0:00:03]} Rg5 {[%emt 0:00:05]} 51. Bd6 {[%emt 0:00:04]} Kb6 {[%emt 0:00:00]} 52. Re5 {[%emt 0:00:05]} Rg3+ {[%emt 0:00:04]} 53. c3 {[%emt 0:00:00]} Rg4 {[%emt 0:00:08]} 54. Re6 {[%emt 0:00:01]} Ka7 {[%emt 0:00:15]} 55. Bc5+ {[%emt 0:00:01]} Kb8 {[%emt 0:00:02]} 56. Rb6 {[%emt 0:00:02]} Kc7 {[%emt 0:00:02]} 57. Rxb5 {[%emt 0:00:17]} Kc6 {[%emt 0:00:05]} 58. c4 {[%emt 0:00:01]} Rg2 {[%emt 0:00:00]} 59. Bd4 {[%emt 0:00:06]} Rh2 {[%emt 0:00:06]} 60. Rb6+ {[%emt 0:00:01]} Kd7 {[%emt 0:00:16]} 61. Rxb7+ {[%emt 0:00:02]} Kc6 {[%emt 0:00:01]} 62. Rb6+ {[%emt 0:00:02]} Kd7 {[%emt 0:00:00]} 63. Rg6 {[%emt 0:00:06]} Rh1 {[%emt 0:00:01]} 64. Kb4 {[%emt 0:00:10]} Rh4 {[%emt 0:00:04]} 65. Bc3 {[%emt 0:00:08]} Rh5 {[%emt 0:00:03]} 66. c5 {[%emt 0:00:03]} Rh1 {[%emt 0:00:02]} 67. Kc4 {[%emt 0:00:03]} Rh4+ {[%emt 0:00:05]} 68. Bd4 {[%emt 0:00:01]} 1-0

[Event "Redbull chessmasters 2019"]
[Site "Istambul"]
[Date "2019.11.24"]
[Round "7.4"]
[White "Yildiz Kadioglu, Betul Cemre"]
[Black "Kalayci, Nino"]
[Result "1-0"]
[ECO "E09"]
[WhiteElo "2338"]
[BlackElo "1852"]
[Annotator "NA"]
[PlyCount "55"]
[EventDate "2019.11.23"]
[EventType "k.o."]
[EventCountry "TUR"]
[SourceTitle "playchess.com"]
[Source "ChessBase"]
[SourceQuality "1"]
[TimeControl "600+5"]

1. d4 {[%emt 0:00:00]} d5 {[%emt 0:00:03]} 2. Nf3 {[%emt 0:00:00]} Nf6 {[%emt 0:00:04]} 3. c4 {[%emt 0:00:04]} e6 {[%emt 0:00:00]} 4. g3 {[%emt 0:00:20]} c6 {[%emt 0:00:03]} 5. Bg2 {[%emt 0:00:05]} Be7 {[%emt 0:00:12]} 6. O-O {[%emt 0:00:00]} O-O {[%emt 0:00:06]} 7. Qc2 {[%emt 0:00:02]} Nbd7 {[%emt 0:00:20]} 8. Nbd2 {[%emt 0:00:02]} Re8 {[%emt 0:02:33]} 9. e4 {[%emt 0:00:25]} dxe4 {[%emt 0:00:10]} 10. Nxe4 {[%emt 0:00:07]} Nxe4 {[%emt 0:00:05]} 11. Qxe4 {[%emt 0:00:05]} Nf6 {[%emt 0:00:05]} 12. Qe2 {[%emt 0:00:03]} h6 {[%emt 0:00:34]} 13. Rd1 {[%emt 0:00:48]} Bd6 {[%emt 0:00:54]} 14. Ne5 {[%emt 0:01:27]} Qe7 {[%emt 0:00:30]} 15. Bf4 {[%emt 0:00:52]} c5 {[%emt 0:01:17]} 16. dxc5 {[%emt 0:00:52]} Bxc5 {[%emt 0:00:02]} 17. Nd3 {[%emt 0:00:15]} Bd6 {[%emt 0:01:01]} 18. Bxd6 {[%emt 0:01:55]} Qxd6 {[%emt 0:00:09]} 19. Qe5 {[%emt 0:00:10]} Qe7 {[%emt 0:00:33]} 20. h3 {[%emt 0:01:19]} Nd7 {[%emt 0:00:05]} 21. Qc7 {[%emt 0:00:01]} Nb6 {[%emt 0:00:45]} 22. Qxe7 {[%emt 0:00:32]} Rxe7 {[%emt 0:00:01]} 23. b3 {[%emt 0:00:11]} Nd7 {[%emt 0:00:35]} 24. Nf4 {[%emt 0:00:19]} Rb8 {[%emt 0:00:37]} 25. Rd6 {[%emt 0:00:15]} b5 {[%emt 0:00:45]} 26. cxb5 {[%emt 0:00:26]} Rxb5 {[%emt 0:00:02]} 27. Rc1 {[%emt 0:00:22]} Bb7 {[%emt 0:00:08]} 28. Rc7 {[%emt 0:00:06]} 1-0

[Event "Redbull chessmasters 2019"]
[Site "Istambul"]
[Date "2019.11.24"]
[Round "7.5"]
[White "Inan, Canberk"]
[Black "Alaz, Ahmet Efekan"]
[Result "0-1"]
[ECO "D15"]
[WhiteElo "1941"]
[BlackElo "2288"]
[Annotator "NA"]
[PlyCount "74"]
[EventDate "2019.11.23"]
[EventType "k.o."]
[EventCountry "TUR"]
[SourceTitle "playchess.com"]
[Source "ChessBase"]
[SourceQuality "1"]
[TimeControl "600+5"]

1. d4 {[%emt 0:00:00]} d5 {[%emt 0:00:00]} 2. c4 {[%emt 0:00:05]} c6 {[%emt 0:00:05]} 3. Nf3 {[%emt 0:00:05]} Nf6 {[%emt 0:00:05]} 4. Nc3 {[%emt 0:00:05]} a6 {[%emt 0:00:00]} 5. b3 {[%emt 0:00:00]} b5 {[%emt 0:00:33]} 6. e3 {[%emt 0:00:04]} Bg4 {[%emt 0:00:05]} 7. Be2 {[%emt 0:00:01]} e6 {[%emt 0:01:07]} 8. O-O {[%emt 0:00:02]} Nbd7 {[%emt 0:00:22]} 9. Ne5 {[%emt 0:00:30]} Bxe2 {[%emt 0:01:03]} 10. Qxe2 {[%emt 0:00:05]} Nxe5 {[%emt 0:00:05]} 11. dxe5 {[%emt 0:00:05]} Nd7 {[%emt 0:00:05]} 12. f4 {[%emt 0:00:21]} Bc5 {[%emt 0:00:40]} 13. Kh1 {[%emt 0:00:47]} O-O {[%emt 0:00:12]} 14. cxd5 {[%emt 0:01:46]} cxd5 {[%emt 0:00:05]} 15. Bb2 {[%emt 0:00:04]} Qe7 {[%emt 0:02:38]} 16. Rad1 {[%emt 0:01:10]} Rad8 {[%emt 0:00:49]} 17. e4 {[%emt 0:01:48]} d4 {[%emt 0:00:44]} 18. Nb1 {[%emt 0:00:05]} Nb8 {[%emt 0:00:06]} 19. Rf3 {[%emt 0:01:01]} f6 {[%emt 0:00:44]} 20. exf6 {[%emt 0:00:25]} Qxf6 {[%emt 0:00:58]} 21. Qd3 {[%emt 0:02:18]} e5 {[%emt 0:00:32]} 22. b4 {[%emt 0:00:11]} Bb6 {[%emt 0:00:15]} 23. Rdf1 {[%emt 0:00:12]} Qe7 {[%emt 0:00:36]} 24. fxe5 {[%emt 0:00:15]} Rxf3 {[%emt 0:00:02]} 25. Rxf3 {[%emt 0:00:00]} Rf8 {[%emt 0:00:07]} 26. Bxd4 {[%emt 0:00:25]} Rxf3 {[%emt 0:00:04]} 27. gxf3 {[%emt 0:00:06]} Bc7 {[%emt 0:00:04]} 28. Qb3+ {[%emt 0:00:05]} Kh8 {[%emt 0:00:01]} 29. Qc3 {[%emt 0:00:05]} h6 {[%emt 0:00:08]} 30. Nd2 {[%emt 0:00:07]} Bd8 {[%emt 0:00:05]} 31. Qc8 {[%emt 0:00:01]} Nd7 {[%emt 0:00:03]} 32. Bc5 {[%emt 0:00:15]} Nxc5 {[%emt 0:00:05]} 33. bxc5 {[%emt 0:00:05]} Qh4 {[%emt 0:00:02]} 34. Kg2 {[%emt 0:00:04]} Qg5+ {[%emt 0:00:02]} 35. Kf1 {[%emt 0:00:11]} Qxd2 {[%emt 0:00:05]} 36. e6 {[%emt 0:00:05]} Kh7 {[%emt 0:00:05]} 37. c6 {[%emt 0:00:05]} Bh4 {[%emt 0:00:03]} 0-1

[Event "Redbull chessmasters 2019"]
[Site "Istambul"]
[Date "2019.11.24"]
[Round "7.6"]
[White "Cingoz, Ozan"]
[Black "Ozdemir, Serhan Berat"]
[Result "1-0"]
[ECO "D00"]
[WhiteElo "2031"]
[BlackElo "2096"]
[Annotator "NA"]
[PlyCount "75"]
[EventDate "2019.11.23"]
[EventType "k.o."]
[EventCountry "TUR"]
[SourceTitle "playchess.com"]
[Source "ChessBase"]
[SourceQuality "1"]
[TimeControl "600+5"]

1. d4 {[%emt 0:00:00]} Nf6 {[%emt 0:00:00]} 2. Nf3 {[%emt 0:00:05]} g6 {[%emt 0:00:05]} 3. Nc3 {[%emt 0:00:05]} d5 {[%emt 0:00:00]} 4. Bf4 {[%emt 0:00:00]} Bg7 {[%emt 0:00:03]} 5. Qd2 {[%emt 0:00:00]} O-O {[%emt 0:00:07]} 6. Bh6 {[%emt 0:00:00]} c5 {[%emt 0:00:32]} 7. Bxg7 {[%emt 0:00:35]} Kxg7 {[%emt 0:00:01]} 8. dxc5 {[%emt 0:00:21]} Nc6 {[%emt 0:00:38]} 9. Rd1 {[%emt 0:00:01]} Be6 {[%emt 0:00:59]} 10. e3 {[%emt 0:02:26]} Rc8 {[%emt 0:01:07]} 11. Nd4 {[%emt 0:01:09]} Bg4 {[%emt 0:01:08]} 12. f3 {[%emt 0:00:35]} Bd7 {[%emt 0:00:01]} 13. Nxc6 {[%emt 0:00:08]} Bxc6 {[%emt 0:00:38]} 14. b4 {[%emt 0:00:05]} e6 {[%emt 0:00:49]} 15. Be2 {[%emt 0:01:02]} Qe7 {[%emt 0:00:51]} 16. O-O {[%emt 0:00:20]} Rfd8 {[%emt 0:00:01]} 17. Nb5 {[%emt 0:00:52]} Ne8 {[%emt 0:01:23]} 18. Nxa7 {[%emt 0:00:05]} Ra8 {[%emt 0:00:00]} 19. Nxc6 {[%emt 0:00:09]} bxc6 {[%emt 0:00:00]} 20. c4 {[%emt 0:00:17]} Kg8 {[%emt 0:00:23]} 21. cxd5 {[%emt 0:00:29]} exd5 {[%emt 0:00:03]} 22. Ra1 {[%emt 0:00:05]} Ra3 {[%emt 0:00:05]} 23. Kf2 {[%emt 0:00:20]} Qh4+ {[%emt 0:00:21]} 24. Kg1 {[%emt 0:00:11]} Qe7 {[%emt 0:00:33]} 25. Kf2 {[%emt 0:00:06]} f5 {[%emt 0:00:47]} 26. Qd4 {[%emt 0:00:05]} Nc7 {[%emt 0:00:00]} 27. Rfb1 {[%emt 0:00:31]} Ne6 {[%emt 0:00:58]} 28. Qe5 {[%emt 0:00:05]} Qh4+ {[%emt 0:00:06]} 29. Kg1 {[%emt 0:00:16]} Re8 {[%emt 0:00:01]} 30. Rb3 {[%emt 0:00:05]} Rxb3 {[%emt 0:00:29]} 31. axb3 {[%emt 0:00:05]} Ng7 {[%emt 0:00:01]} 32. Qc3 {[%emt 0:01:05]} d4 {[%emt 0:00:24]} 33. Bc4+ {[%emt 0:00:05]} Kh8 {[%emt 0:00:05]} 34. Qxd4 {[%emt 0:00:00]} Qe7 {[%emt 0:00:04]} 35. Kf2 {[%emt 0:00:45]} Qe5 {[%emt 0:00:12]} 36. Qxe5 {[%emt 0:00:02]} Rxe5 {[%emt 0:00:00]} 37. Ra8+ {[%emt 0:00:06]} Ne8 {[%emt 0:00:00]} 38. Bf7 {[%emt 0:00:00]} 1-0

[Event "Redbull chessmasters 2019"]
[Site "Istambul"]
[Date "2019.11.24"]
[Round "7.7"]
[White "Ozsakallioglu, Okan"]
[Black "Can, Melih Kaan"]
[Result "1/2-1/2"]
[ECO "C20"]
[WhiteElo "2072"]
[BlackElo "2138"]
[Annotator "NA"]
[PlyCount "96"]
[EventDate "2019.11.23"]
[EventType "k.o."]
[EventCountry "TUR"]
[SourceTitle "playchess.com"]
[Source "ChessBase"]
[SourceQuality "1"]
[TimeControl "600+5"]

1. e4 {[%emt 0:00:00]} e5 {[%emt 0:00:00]} 2. Qh5 {[%emt 0:00:02]} Nc6 {[%emt 0:00:08]} 3. Bc4 {[%emt 0:00:02]} g6 {[%emt 0:00:12]} 4. Qf3 {[%emt 0:00:05]} Nf6 {[%emt 0:00:05]} 5. Ne2 {[%emt 0:00:00]} Bg7 {[%emt 0:00:03]} 6. h3 {[%emt 0:00:03]} d6 {[%emt 0:00:05]} 7. d3 {[%emt 0:00:05]} a6 {[%emt 0:00:07]} 8. Bb3 {[%emt 0:00:06]} Na5 {[%emt 0:00:30]} 9. Nbc3 {[%emt 0:00:05]} Nxb3 {[%emt 0:00:05]} 10. axb3 {[%emt 0:00:05]} Be6 {[%emt 0:00:05]} 11. d4 {[%emt 0:00:00]} exd4 {[%emt 0:00:57]} 12. Nxd4 {[%emt 0:00:00]} Bd7 {[%emt 0:00:32]} 13. O-O {[%emt 0:00:22]} O-O {[%emt 0:00:03]} 14. Bg5 {[%emt 0:00:19]} h6 {[%emt 0:00:26]} 15. Bh4 {[%emt 0:00:04]} c5 {[%emt 0:01:46]} 16. Nde2 {[%emt 0:00:26]} g5 {[%emt 0:00:05]} 17. Bg3 {[%emt 0:00:01]} Bc6 {[%emt 0:00:00]} 18. Rad1 {[%emt 0:00:09]} Re8 {[%emt 0:00:00]} 19. Bxd6 {[%emt 0:01:38]} Nxe4 {[%emt 0:00:07]} 20. Nxe4 {[%emt 0:01:27]} Bxe4 {[%emt 0:00:03]} 21. Qg4 {[%emt 0:00:15]} Bxc2 {[%emt 0:00:57]} 22. Rd2 {[%emt 0:00:00]} Bg6 {[%emt 0:00:19]} 23. Ng3 {[%emt 0:00:29]} Qb6 {[%emt 0:00:50]} 24. Rfd1 {[%emt 0:00:56]} Qxb3 {[%emt 0:00:48]} 25. Bxc5 {[%emt 0:00:14]} Qe6 {[%emt 0:00:46]} 26. Qb4 {[%emt 0:00:08]} b5 {[%emt 0:00:15]} 27. Bd4 {[%emt 0:00:12]} Rad8 {[%emt 0:00:12]} 28. Bxg7 {[%emt 0:00:38]} Rxd2 {[%emt 0:00:05]} 29. Rxd2 {[%emt 0:00:09]} Kxg7 {[%emt 0:00:00]} 30. Kh2 {[%emt 0:00:41]} Qe5 {[%emt 0:00:05]} 31. Re2 {[%emt 0:00:15]} Qb8 {[%emt 0:00:28]} 32. Qd4+ {[%emt 0:00:51]} Kh7 {[%emt 0:00:12]} 33. Rxe8 {[%emt 0:01:08]} Qxe8 {[%emt 0:00:03]} 34. f4 {[%emt 0:00:16]} gxf4 {[%emt 0:00:11]} 35. Qxf4 {[%emt 0:00:02]} Qe6 {[%emt 0:00:12]} 36. h4 {[%emt 0:00:01]} h5 {[%emt 0:00:11]} 37. Kg1 {[%emt 0:01:10]} a5 {[%emt 0:00:11]} 38. Kf2 {[%emt 0:00:10]} a4 {[%emt 0:00:24]} 39. Qg5 {[%emt 0:00:02]} Qb3 {[%emt 0:00:36]} 40. Nxh5 {[%emt 0:00:21]} Qxb2+ {[%emt 0:00:19]} 41. Kg3 {[%emt 0:00:02]} Bxh5 {[%emt 0:00:52]} 42. Qxh5+ {[%emt 0:00:05]} Kg8 {[%emt 0:00:05]} 43. Kh2 {[%emt 0:00:00]} a3 {[%emt 0:00:04]} 44. Qg5+ {[%emt 0:00:10]} Kf8 {[%emt 0:00:05]} 45. Qd8+ {[%emt 0:00:05]} Kg7 {[%emt 0:00:05]} 46. Qg5+ {[%emt 0:00:00]} Kf8 {[%emt 0:00:02]} 47. Qd8+ {[%emt 0:00:00]} Kg7 {[%emt 0:00:05]} 48. Qg5+ {[%emt 0:00:03]} Kf8 {[%emt 0:00:00]} 1/2-1/2